[Event "Chessable Masters - Torneo preliminare"]
[White "Ibarra Jerez, Jose Carlos"]
[Black "Wagner, Dennis"]
[WhiteFideId "2226332"]
[BlackFideId "24650684"]
[WhiteElo "2546"]
[BlackElo "2456"]
[Result "1/2-1/2"]
[Round "3"]
[TimeControl "600+2"]
[Date "2023.03.13"]
[WhiteClock "0:08:33"]
[BlackClock "0:06:10"]

1. e4 {[%clk 0:09:58]}  e5 {[%clk 0:09:57]} 2. Nf3 {[%clk 0:09:57]}  Nc6 {[%clk 0:09:58]} 3. Nc3 {[%clk 0:09:59]}  Nf6 {[%clk 0:09:59]} 4. h3 {[%clk 0:10:00]}  Bb4 {[%clk 0:09:56]} 5. Nd5 {[%clk 0:09:58]}  Nxd5 {[%clk 0:09:57]} 6. exd5 {[%clk 0:09:59]}  e4 {[%clk 0:09:50]} 7. dxc6 {[%clk 0:09:57]}  exf3 {[%clk 0:09:51]} 8. Qxf3 {[%clk 0:09:56]}  dxc6 {[%clk 0:09:40]} 9. Bc4 {[%clk 0:09:54]}  O-O {[%clk 0:09:15]} 10. O-O {[%clk 0:09:51]}  Qd7 {[%clk 0:08:59]} 11. Re1 {[%clk 0:09:21]}  Qf5 {[%clk 0:08:50]} 12. Qxf5 {[%clk 0:09:09]}  Bxf5 {[%clk 0:08:52]} 13. c3 {[%clk 0:09:08]}  Bd6 {[%clk 0:08:51]} 14. d4 {[%clk 0:09:09]}  Rfe8 {[%clk 0:08:39]} 15. Bd2 {[%clk 0:09:02]}  h5 {[%clk 0:08:33]} 16. Rxe8+ {[%clk 0:08:58]}  Rxe8 {[%clk 0:08:33]} 17. Re1 {[%clk 0:08:54]}  Rxe1+ {[%clk 0:08:34]} 18. Bxe1 {[%clk 0:08:56]}  Kf8 {[%clk 0:06:53]} 19. Bd2 {[%clk 0:08:55]}  Ke7 {[%clk 0:06:47]} 20. Kf1 {[%clk 0:08:56]}  f6 {[%clk 0:06:40]} 21. Ke2 {[%clk 0:08:56]}  g5 {[%clk 0:06:36]} 22. Bd3 {[%clk 0:08:41]}  Ke6 {[%clk 0:06:06]} 23. Bc4+ {[%clk 0:08:35]}  Ke7 {[%clk 0:06:08]} 24. Bd3 {[%clk 0:08:35]}  Ke6 {[%clk 0:06:09]} 25. Bc4+ {[%clk 0:08:33]}  Ke7 {[%clk 0:06:10]} 1/2-1/2


[Site "Internet"]

[Event "Chessable Masters - Torneo preliminare"]
[White "Larino Nieto, David"]
[Black "Chigaev, Maksim"]
[WhiteFideId "2256444"]
[BlackFideId "4108116"]
[WhiteElo "2496"]
[BlackElo "2568"]
[Result "0-1"]
[Round "3"]
[TimeControl "600+2"]
[Date "2023.03.13"]
[WhiteClock "0:00:16"]
[BlackClock "0:03:00"]

1. e4 {[%clk 0:10:01]}  c5 {[%clk 0:10:01]} 2. Nc3 {[%clk 0:10:02]}  Nc6 {[%clk 0:09:59]} 3. g3 {[%clk 0:10:04]}  g6 {[%clk 0:09:55]} 4. Bg2 {[%clk 0:10:04]}  Bg7 {[%clk 0:09:57]} 5. d3 {[%clk 0:10:04]}  d6 {[%clk 0:09:58]} 6. f4 {[%clk 0:10:06]}  e6 {[%clk 0:09:58]} 7. Nf3 {[%clk 0:10:07]}  Nge7 {[%clk 0:09:59]} 8. O-O {[%clk 0:10:06]}  O-O {[%clk 0:10:01]} 9. Be3 {[%clk 0:10:01]}  b6 {[%clk 0:10:01]} 10. Bf2 {[%clk 0:10:01]}  Ba6 {[%clk 0:10:02]} 11. Re1 {[%clk 0:09:58]}  Qd7 {[%clk 0:10:03]} 12. a4 {[%clk 0:09:53]}  Rac8 {[%clk 0:10:00]} 13. d4 {[%clk 0:09:44]}  cxd4 {[%clk 0:09:09]} 14. Nxd4 {[%clk 0:09:46]}  Rfd8 {[%clk 0:09:02]} 15. Qd2 {[%clk 0:08:29]}  Na5 {[%clk 0:08:35]} 16. Rad1 {[%clk 0:08:25]}  Nc4 {[%clk 0:08:20]} 17. Qc1 {[%clk 0:08:25]}  e5 {[%clk 0:08:20]} 18. fxe5 {[%clk 0:08:15]}  Nxe5 {[%clk 0:08:13]} 19. Ndb5 {[%clk 0:08:00]}  Bxb5 {[%clk 0:08:03]} 20. Nxb5 {[%clk 0:07:56]}  Rc6 {[%clk 0:07:06]} 21. Nd4 {[%clk 0:07:21]}  Rcc8 {[%clk 0:06:56]} 22. Nb5 {[%clk 0:07:16]}  Ng4 {[%clk 0:04:11]} 23. Bh3 {[%clk 0:05:52]}  Be5 {[%clk 0:04:10]} 24. Bd4 {[%clk 0:05:05]}  Nc6 {[%clk 0:03:56]} 25. Bf2 {[%clk 0:02:41]}  h5 {[%clk 0:03:50]} 26. Nxd6 {[%clk 0:01:07]}  Bxd6 {[%clk 0:03:44]} 27. e5 {[%clk 0:01:08]}  Ncxe5 {[%clk 0:03:10]} 28. Rxe5 {[%clk 0:01:01]}  Qxa4 {[%clk 0:03:04]} 29. Red5 {[%clk 0:00:44]}  Nxf2 {[%clk 0:02:59]} 30. Bxc8 {[%clk 0:00:25]}  Nxd1 {[%clk 0:02:59]} 31. Qxd1 {[%clk 0:00:16]}  Bc5+ {[%clk 0:03:00]} 0-1


[Site "Internet"]

[Event "Chessable Masters - Torneo preliminare"]
[White "Sarana, Alexey"]
[Black "Girya, Olga"]
[WhiteFideId "24133795"]
[BlackFideId "4195752"]
[WhiteElo "2643"]
[BlackElo "2327"]
[Result "1-0"]
[Round "3"]
[TimeControl "600+2"]
[Date "2023.03.13"]
[WhiteClock "0:08:06"]
[BlackClock "0:00:05"]

1. c4 {[%clk 0:10:01]}  Nf6 {[%clk 0:09:55]} 2. Nc3 {[%clk 0:10:02]}  e5 {[%clk 0:09:56]} 3. Nf3 {[%clk 0:10:03]}  Nc6 {[%clk 0:09:56]} 4. g3 {[%clk 0:10:05]}  Bb4 {[%clk 0:08:54]} 5. Nd5 {[%clk 0:10:04]}  Bc5 {[%clk 0:08:54]} 6. Bg2 {[%clk 0:10:04]}  d6 {[%clk 0:08:51]} 7. e3 {[%clk 0:10:04]}  Nxd5 {[%clk 0:08:48]} 8. cxd5 {[%clk 0:10:01]}  Ne7 {[%clk 0:08:48]} 9. d4 {[%clk 0:09:58]}  Bb4+ {[%clk 0:08:43]} 10. Nd2 {[%clk 0:09:55]}  O-O {[%clk 0:08:27]} 11. a3 {[%clk 0:09:50]}  Bxd2+ {[%clk 0:08:02]} 12. Qxd2 {[%clk 0:09:52]}  f6 {[%clk 0:06:28]} 13. O-O {[%clk 0:09:51]}  Bd7 {[%clk 0:05:46]} 14. b4 {[%clk 0:09:50]}  Qc8 {[%clk 0:05:19]} 15. Re1 {[%clk 0:09:49]}  Bh3 {[%clk 0:05:19]} 16. Bh1 {[%clk 0:09:49]}  Nf5 {[%clk 0:05:08]} 17. Bb2 {[%clk 0:09:46]}  Qd7 {[%clk 0:04:52]} 18. Rac1 {[%clk 0:09:43]}  a5 {[%clk 0:04:03]} 19. e4 {[%clk 0:09:32]}  Nxd4 {[%clk 0:03:59]} 20. Bxd4 {[%clk 0:09:34]}  exd4 {[%clk 0:04:00]} 21. Qxd4 {[%clk 0:09:27]}  axb4 {[%clk 0:03:59]} 22. axb4 {[%clk 0:09:29]}  Rf7 {[%clk 0:03:36]} 23. Ra1 {[%clk 0:09:23]}  Re8 {[%clk 0:03:26]} 24. f4 {[%clk 0:09:20]}  Rfe7 {[%clk 0:03:22]} 25. Rac1 {[%clk 0:09:14]}  Qb5 {[%clk 0:02:59]} 26. Bf3 {[%clk 0:09:12]}  Ra8 {[%clk 0:02:32]} 27. Rc4 {[%clk 0:09:05]}  Ra3 {[%clk 0:02:18]} 28. Be2 {[%clk 0:09:04]}  Qe8 {[%clk 0:02:04]} 29. Bd1 {[%clk 0:08:59]}  Bf5 {[%clk 0:01:15]} 30. Qb2 {[%clk 0:08:41]}  Rd3 {[%clk 0:00:38]} 31. Bc2 {[%clk 0:08:12]}  b5 {[%clk 0:00:15]} 32. Rxc7 {[%clk 0:08:04]}  Rxc7 {[%clk 0:00:08]} 33. Bxd3 {[%clk 0:08:06]}  Re7 {[%clk 0:00:05]} 34. Qd4 {[%clk 0:08:06]}  Bg6 {[%clk 0:00:04]} 35. Kg2 {[%clk 0:08:06]}  Qa8 {[%clk 0:00:02]} 36. g4 {[%clk 0:08:07]}  Qa2+ {[%clk 0:00:02]} 37. Re2 {[%clk 0:08:08]}  Qa4 {[%clk 0:00:02]} 38. Rc2 {[%clk 0:08:09]}  h6 {[%clk 0:00:03]} 39. h4 {[%clk 0:08:10]}  Bf7 {[%clk 0:00:03]} 40. h5 {[%clk 0:08:12]}  Re8 {[%clk 0:00:03]} 41. Kf3 {[%clk 0:08:12]}  Qb3 {[%clk 0:00:04]} 42. Qc3 {[%clk 0:08:04]}  Qa4 {[%clk 0:00:05]} 43. Rc1 {[%clk 0:08:04]}  Ra8 {[%clk 0:00:05]} 44. Qb2 {[%clk 0:08:02]}  Qa3 {[%clk 0:00:05]} 45. Qxa3 {[%clk 0:08:02]}  Rxa3 {[%clk 0:00:06]} 46. Rc8+ {[%clk 0:08:03]}  Kh7 {[%clk 0:00:06]} 47. Ke2 {[%clk 0:08:04]}  g6 {[%clk 0:00:03]} 48. e5 {[%clk 0:07:59]}  dxe5 {[%clk 0:00:02]} 49. hxg6+ {[%clk 0:08:00]}  Bxg6 {[%clk 0:00:02]} 50. Rc7+ {[%clk 0:08:02]}  Kg8 {[%clk 0:00:04]} 51. Bxg6 {[%clk 0:08:04]}  exf4 {[%clk 0:00:05]} 52. d6 {[%clk 0:08:06]} 1-0


[Site "Internet"]

[Event "Chessable Masters - Torneo preliminare"]
[White "Svane, Rasmus"]
[Black "Yu, Yangyi"]
[WhiteFideId "4657101"]
[BlackFideId "8603820"]
[WhiteElo "2621"]
[BlackElo "2734"]
[Result "0-1"]
[Round "3"]
[TimeControl "600+2"]
[Date "2023.03.13"]
[WhiteClock "0:02:17"]
[BlackClock "0:05:58"]

1. Nf3 {[%clk 0:10:01]}  d5 {[%clk 0:09:48]} 2. g3 {[%clk 0:10:02]}  Nc6 {[%clk 0:09:48]} 3. d4 {[%clk 0:10:01]}  Bf5 {[%clk 0:09:48]} 4. Bg2 {[%clk 0:10:02]}  e6 {[%clk 0:09:49]} 5. O-O {[%clk 0:10:01]}  Nb4 {[%clk 0:09:49]} 6. Na3 {[%clk 0:10:00]}  Nc6 {[%clk 0:09:50]} 7. Nb1 {[%clk 0:09:59]}  Nb4 {[%clk 0:09:51]} 8. Ne1 {[%clk 0:09:42]}  Be7 {[%clk 0:09:40]} 9. c3 {[%clk 0:09:38]}  Nc6 {[%clk 0:09:41]} 10. Nd3 {[%clk 0:09:37]}  Nf6 {[%clk 0:09:37]} 11. Re1 {[%clk 0:08:45]}  a5 {[%clk 0:09:32]} 12. Nd2 {[%clk 0:08:31]}  h5 {[%clk 0:08:32]} 13. e4 {[%clk 0:08:22]}  dxe4 {[%clk 0:08:30]} 14. Nxe4 {[%clk 0:08:24]}  Nxe4 {[%clk 0:08:29]} 15. Bxe4 {[%clk 0:08:26]}  Bxe4 {[%clk 0:08:30]} 16. Rxe4 {[%clk 0:08:28]}  Qd5 {[%clk 0:08:15]} 17. Qf3 {[%clk 0:07:40]}  O-O-O {[%clk 0:07:48]} 18. Rf4 {[%clk 0:06:13]}  f6 {[%clk 0:07:05]} 19. Qxd5 {[%clk 0:03:59]}  Rxd5 {[%clk 0:07:05]} 20. Rf3 {[%clk 0:03:53]}  e5 {[%clk 0:06:24]} 21. dxe5 {[%clk 0:03:45]}  fxe5 {[%clk 0:06:18]} 22. Ne1 {[%clk 0:03:22]}  Rd1 {[%clk 0:06:03]} 23. Kf1 {[%clk 0:03:13]}  Bg5 {[%clk 0:06:01]} 24. Bxg5 {[%clk 0:02:16]}  Rxa1 {[%clk 0:06:02]} 25. a3 {[%clk 0:02:17]}  a4 {[%clk 0:05:58]} 0-1


[Site "Internet"]

[Event "Chessable Masters - Torneo preliminare"]
[White "Grischuk, Alexander"]
[Black "Fressinet, Laurent"]
[WhiteFideId "4126025"]
[BlackFideId "608742"]
[WhiteElo "2731"]
[BlackElo "2689"]
[Result "0-1"]
[Round "3"]
[TimeControl "600+2"]
[Date "2023.03.13"]
[WhiteClock "0:00:08"]
[BlackClock "0:00:17"]

1. e4 {[%clk 0:08:58]}  e5 {[%clk 0:09:58]} 2. Nf3 {[%clk 0:08:59]}  Nc6 {[%clk 0:09:58]} 3. Nc3 {[%clk 0:09:00]}  Nf6 {[%clk 0:09:57]} 4. Bb5 {[%clk 0:09:02]}  Bc5 {[%clk 0:09:50]} 5. O-O {[%clk 0:08:58]}  O-O {[%clk 0:09:29]} 6. Bxc6 {[%clk 0:08:58]}  dxc6 {[%clk 0:09:29]} 7. d3 {[%clk 0:08:59]}  Nd7 {[%clk 0:09:08]} 8. a4 {[%clk 0:09:00]}  a5 {[%clk 0:08:51]} 9. Be3 {[%clk 0:09:00]}  Bd6 {[%clk 0:08:48]} 10. Nd2 {[%clk 0:08:58]}  Re8 {[%clk 0:08:37]} 11. Kh1 {[%clk 0:08:39]}  Nf8 {[%clk 0:08:20]} 12. f4 {[%clk 0:08:36]}  exf4 {[%clk 0:08:08]} 13. Bxf4 {[%clk 0:08:38]}  Be6 {[%clk 0:08:02]} 14. Qh5 {[%clk 0:08:13]}  Ng6 {[%clk 0:07:28]} 15. Bxd6 {[%clk 0:08:14]}  cxd6 {[%clk 0:07:30]} 16. Ne2 {[%clk 0:07:14]}  d5 {[%clk 0:06:58]} 17. b3 {[%clk 0:06:44]}  Qh4 {[%clk 0:06:27]} 18. Qxh4 {[%clk 0:06:40]}  Nxh4 {[%clk 0:06:29]} 19. exd5 {[%clk 0:05:23]}  Bxd5 {[%clk 0:05:55]} 20. Nf4 {[%clk 0:05:24]}  Rad8 {[%clk 0:05:26]} 21. Rae1 {[%clk 0:05:01]}  Kf8 {[%clk 0:04:48]} 22. Kg1 {[%clk 0:05:00]}  f6 {[%clk 0:03:55]} 23. Nc4 {[%clk 0:03:26]}  Bxc4 {[%clk 0:03:28]} 24. bxc4 {[%clk 0:03:28]}  Rxe1 {[%clk 0:03:07]} 25. Rxe1 {[%clk 0:03:28]}  Kf7 {[%clk 0:03:08]} 26. Kf2 {[%clk 0:03:16]}  Nf5 {[%clk 0:02:49]} 27. g4 {[%clk 0:02:44]}  Rd4 {[%clk 0:01:55]} 28. gxf5 {[%clk 0:01:33]}  Rxf4+ {[%clk 0:01:53]} 29. Kg3 {[%clk 0:01:35]}  Rd4 {[%clk 0:01:25]} 30. Rb1 {[%clk 0:01:03]}  Rd7 {[%clk 0:01:26]} 31. h4 {[%clk 0:00:56]}  g6 {[%clk 0:01:21]} 32. h5 {[%clk 0:00:49]}  gxh5 {[%clk 0:00:36]} 33. Kh4 {[%clk 0:00:46]}  Ke7 {[%clk 0:00:35]} 34. Re1+ {[%clk 0:00:38]}  Kd6 {[%clk 0:00:28]} 35. d4 {[%clk 0:00:14]}  Kc7 {[%clk 0:00:28]} 36. c3 {[%clk 0:00:15]}  Rg7 {[%clk 0:00:27]} 37. Kxh5 {[%clk 0:00:15]}  Rg5+ {[%clk 0:00:25]} 38. Kh6 {[%clk 0:00:13]}  Rxf5 {[%clk 0:00:27]} 39. Kxh7 {[%clk 0:00:08]}  Rf3 {[%clk 0:00:28]} 40. Rc1 {[%clk 0:00:08]}  Rg3 {[%clk 0:00:25]} 41. c5 {[%clk 0:00:08]}  f5 {[%clk 0:00:23]} 42. Kh6 {[%clk 0:00:04]}  f4 {[%clk 0:00:23]} 43. Kh5 {[%clk 0:00:05]}  Rg2 {[%clk 0:00:13]} 44. Rf1 {[%clk 0:00:04]}  Ra2 {[%clk 0:00:13]} 45. Rxf4 {[%clk 0:00:04]}  Rxa4 {[%clk 0:00:14]} 46. Rf7+ {[%clk 0:00:04]}  Kb8 {[%clk 0:00:15]} 47. Kg4 {[%clk 0:00:06]}  Rc4 {[%clk 0:00:15]} 48. Rf3 {[%clk 0:00:06]}  a4 {[%clk 0:00:16]} 49. Kf4 {[%clk 0:00:04]}  a3 {[%clk 0:00:16]} 50. Ke4 {[%clk 0:00:04]}  a2 {[%clk 0:00:16]} 51. Rf1 {[%clk 0:00:05]}  Rxc3 {[%clk 0:00:18]} 52. Ra1 {[%clk 0:00:06]}  Ra3 {[%clk 0:00:19]} 53. d5 {[%clk 0:00:07]}  Kc7 {[%clk 0:00:15]} 54. Kd4 {[%clk 0:00:04]}  Ra4+ {[%clk 0:00:15]} 55. Ke5 {[%clk 0:00:05]}  cxd5 {[%clk 0:00:16]} 56. Kxd5 {[%clk 0:00:07]}  Kd7 {[%clk 0:00:18]} 57. c6+ {[%clk 0:00:06]}  bxc6+ {[%clk 0:00:16]} 58. Kc5 {[%clk 0:00:08]}  Kc7 {[%clk 0:00:17]} 0-1


[Site "Internet"]

[Event "Chessable Masters - Torneo preliminare"]
[White "Esipenko, Andrey"]
[Black "Xu, Yinglun"]
[WhiteFideId "24175439"]
[BlackFideId "8604940"]
[WhiteElo "2682"]
[BlackElo "2523"]
[Result "1-0"]
[Round "3"]
[TimeControl "600+2"]
[Date "2023.03.13"]
[WhiteClock "0:03:41"]
[BlackClock "0:02:18"]

1. d4 {[%clk 0:10:01]}  Nf6 {[%clk 0:10:00]} 2. c4 {[%clk 0:10:02]}  e6 {[%clk 0:10:01]} 3. Nf3 {[%clk 0:10:02]}  d5 {[%clk 0:10:02]} 4. g3 {[%clk 0:10:03]}  dxc4 {[%clk 0:09:52]} 5. Bg2 {[%clk 0:10:03]}  c6 {[%clk 0:09:50]} 6. O-O {[%clk 0:10:00]}  b5 {[%clk 0:09:48]} 7. a4 {[%clk 0:09:59]}  Bb7 {[%clk 0:09:48]} 8. Ne5 {[%clk 0:09:59]}  a6 {[%clk 0:09:44]} 9. b3 {[%clk 0:10:00]}  cxb3 {[%clk 0:09:36]} 10. Qxb3 {[%clk 0:10:02]}  Be7 {[%clk 0:09:30]} 11. axb5 {[%clk 0:10:01]}  axb5 {[%clk 0:09:30]} 12. Rxa8 {[%clk 0:10:03]}  Bxa8 {[%clk 0:09:31]} 13. Qa2 {[%clk 0:10:04]}  Nbd7 {[%clk 0:08:35]} 14. Nxc6 {[%clk 0:08:15]}  Bxc6 {[%clk 0:08:33]} 15. Bxc6 {[%clk 0:08:17]}  b4 {[%clk 0:08:14]} 16. Nd2 {[%clk 0:08:00]}  O-O {[%clk 0:08:13]} 17. Nb3 {[%clk 0:07:44]}  Nb6 {[%clk 0:07:42]} 18. Bf3 {[%clk 0:05:56]}  Nfd5 {[%clk 0:07:11]} 19. e4 {[%clk 0:05:30]}  Nc3 {[%clk 0:07:07]} 20. Qa6 {[%clk 0:05:31]}  Qc7 {[%clk 0:05:20]} 21. Bf4 {[%clk 0:04:26]}  Qc4 {[%clk 0:05:17]} 22. Qxb6 {[%clk 0:04:17]}  Qxb3 {[%clk 0:05:18]} 23. Qb7 {[%clk 0:04:15]}  Bf6 {[%clk 0:04:45]} 24. Bd6 {[%clk 0:04:14]}  Bxd4 {[%clk 0:02:18]} 25. Bxf8 {[%clk 0:03:46]}  Kxf8 {[%clk 0:02:18]} 26. Qd7 {[%clk 0:03:41]} 1-0


[Site "Internet"]

[Event "Chessable Masters - Torneo preliminare"]
[White "Santos Ruiz, Miguel"]
[Black "Talibov, Shiroghlan"]
[WhiteFideId "22291482"]
[BlackFideId "13429078"]
[WhiteElo "2491"]
[BlackElo "2247"]
[Result "1-0"]
[Round "3"]
[TimeControl "600+2"]
[Date "2023.03.13"]
[WhiteClock "0:02:35"]
[BlackClock "0:03:43"]

1. e4 {[%clk 0:08:43]}  e5 {[%clk 0:09:51]} 2. Nf3 {[%clk 0:08:43]}  Nc6 {[%clk 0:09:52]} 3. Bc4 {[%clk 0:08:45]}  Nf6 {[%clk 0:09:51]} 4. d3 {[%clk 0:08:46]}  h6 {[%clk 0:09:52]} 5. c3 {[%clk 0:08:46]}  d6 {[%clk 0:09:53]} 6. a4 {[%clk 0:08:45]}  a5 {[%clk 0:09:51]} 7. Nbd2 {[%clk 0:08:41]}  g6 {[%clk 0:09:51]} 8. Qb3 {[%clk 0:08:42]}  Qe7 {[%clk 0:09:50]} 9. O-O {[%clk 0:08:30]}  Bg7 {[%clk 0:09:50]} 10. Re1 {[%clk 0:08:24]}  O-O {[%clk 0:09:50]} 11. Nf1 {[%clk 0:08:25]}  b6 {[%clk 0:09:38]} 12. h3 {[%clk 0:08:22]}  Kh7 {[%clk 0:09:38]} 13. Ng3 {[%clk 0:08:16]}  Be6 {[%clk 0:09:29]} 14. Bxe6 {[%clk 0:08:14]}  fxe6 {[%clk 0:09:31]} 15. Bd2 {[%clk 0:08:05]}  Nd8 {[%clk 0:08:31]} 16. d4 {[%clk 0:08:02]}  Nd7 {[%clk 0:08:32]} 17. Qc4 {[%clk 0:07:47]}  Rc8 {[%clk 0:08:19]} 18. Qd3 {[%clk 0:07:41]}  Qf7 {[%clk 0:08:13]} 19. h4 {[%clk 0:07:34]}  exd4 {[%clk 0:08:00]} 20. cxd4 {[%clk 0:07:34]}  e5 {[%clk 0:08:01]} 21. d5 {[%clk 0:07:03]}  Nf6 {[%clk 0:07:56]} 22. Qa6 {[%clk 0:06:43]}  Rb8 {[%clk 0:07:47]} 23. b4 {[%clk 0:06:00]}  axb4 {[%clk 0:07:36]} 24. Bxb4 {[%clk 0:06:02]}  Nb7 {[%clk 0:07:35]} 25. Rab1 {[%clk 0:05:57]}  Nh5 {[%clk 0:07:22]} 26. Nxh5 {[%clk 0:05:51]}  gxh5 {[%clk 0:07:24]} 27. Rec1 {[%clk 0:05:45]}  Nc5 {[%clk 0:07:24]} 28. Bxc5 {[%clk 0:05:46]}  dxc5 {[%clk 0:07:26]} 29. Qe2 {[%clk 0:05:32]}  Qg6 {[%clk 0:07:22]} 30. Rb3 {[%clk 0:04:55]}  Rf4 {[%clk 0:07:17]} 31. Rc4 {[%clk 0:04:55]}  Rbf8 {[%clk 0:07:13]} 32. Kf1 {[%clk 0:04:51]}  Qg4 {[%clk 0:06:53]} 33. Qc2 {[%clk 0:04:22]}  Qg6 {[%clk 0:06:34]} 34. Qe2 {[%clk 0:03:51]}  Qg4 {[%clk 0:06:30]} 35. Re3 {[%clk 0:03:47]}  Kh8 {[%clk 0:05:50]} 36. Rcc3 {[%clk 0:03:44]}  Ra8 {[%clk 0:05:44]} 37. g3 {[%clk 0:03:35]}  Rf7 {[%clk 0:05:37]} 38. Rc4 {[%clk 0:03:20]}  Qh3+ {[%clk 0:05:14]} 39. Kg1 {[%clk 0:03:20]}  Raf8 {[%clk 0:05:13]} 40. Rcc3 {[%clk 0:03:09]}  Qd7 {[%clk 0:05:04]} 41. Qb5 {[%clk 0:03:01]}  Qxb5 {[%clk 0:04:48]} 42. axb5 {[%clk 0:03:02]}  Ra8 {[%clk 0:04:50]} 43. Ra3 {[%clk 0:03:01]}  Rff8 {[%clk 0:04:50]} 44. Nd2 {[%clk 0:02:59]}  Bf6 {[%clk 0:04:15]} 45. Nc4 {[%clk 0:02:59]}  Rfb8 {[%clk 0:04:14]} 46. Rxa8 {[%clk 0:02:59]}  Rxa8 {[%clk 0:04:16]} 47. Ra3 {[%clk 0:03:00]}  Rg8 {[%clk 0:04:10]} 48. Kh2 {[%clk 0:02:54]}  Rg7 {[%clk 0:03:58]} 49. Ra8+ {[%clk 0:02:47]}  Kh7 {[%clk 0:03:59]} 50. Re8 {[%clk 0:02:46]}  Rf7 {[%clk 0:03:57]} 51. Kg2 {[%clk 0:02:44]}  Kg7 {[%clk 0:03:47]} 52. Re6 {[%clk 0:02:37]}  Kf8 {[%clk 0:03:43]} 53. d6 {[%clk 0:02:35]} 1-0


[Site "Internet"]

[Event "Chessable Masters - Torneo preliminare"]
[White "Predke, Alexandr"]
[Black "Lobanov, Sergei"]
[WhiteFideId "24107581"]
[BlackFideId "24183750"]
[WhiteElo "2582"]
[BlackElo "2436"]
[Result "1/2-1/2"]
[Round "3"]
[TimeControl "600+2"]
[Date "2023.03.13"]
[WhiteClock "0:00:08"]
[BlackClock "0:00:18"]

1. e4 {[%clk 0:10:01]}  e5 {[%clk 0:09:59]} 2. Nf3 {[%clk 0:10:02]}  Nc6 {[%clk 0:10:01]} 3. Bc4 {[%clk 0:10:03]}  Nf6 {[%clk 0:10:01]} 4. d3 {[%clk 0:10:04]}  Be7 {[%clk 0:10:01]} 5. Nc3 {[%clk 0:09:58]}  d6 {[%clk 0:10:01]} 6. a4 {[%clk 0:09:57]}  O-O {[%clk 0:10:02]} 7. a5 {[%clk 0:09:56]}  a6 {[%clk 0:09:57]} 8. O-O {[%clk 0:09:48]}  Be6 {[%clk 0:09:55]} 9. Nd5 {[%clk 0:09:18]}  Bxd5 {[%clk 0:09:08]} 10. exd5 {[%clk 0:09:20]}  Nb8 {[%clk 0:08:55]} 11. d4 {[%clk 0:09:06]}  e4 {[%clk 0:08:04]} 12. Nd2 {[%clk 0:09:06]}  c6 {[%clk 0:07:57]} 13. dxc6 {[%clk 0:07:41]}  Nxc6 {[%clk 0:07:43]} 14. d5 {[%clk 0:07:42]}  Nxa5 {[%clk 0:07:12]} 15. Ba2 {[%clk 0:07:43]}  b5 {[%clk 0:06:37]} 16. Re1 {[%clk 0:07:41]}  Nb7 {[%clk 0:06:36]} 17. Nxe4 {[%clk 0:07:19]}  Nxe4 {[%clk 0:06:38]} 18. Rxe4 {[%clk 0:07:20]}  Nc5 {[%clk 0:06:39]} 19. Re1 {[%clk 0:07:02]}  Bf6 {[%clk 0:06:04]} 20. c3 {[%clk 0:07:02]}  Rb8 {[%clk 0:06:06]} 21. Be3 {[%clk 0:06:56]}  Qc7 {[%clk 0:06:06]} 22. Bb1 {[%clk 0:06:39]}  b4 {[%clk 0:05:45]} 23. Bd4 {[%clk 0:06:39]}  Qd8 {[%clk 0:04:32]} 24. Bxc5 {[%clk 0:04:41]}  dxc5 {[%clk 0:04:33]} 25. Rxa6 {[%clk 0:04:43]}  bxc3 {[%clk 0:04:04]} 26. bxc3 {[%clk 0:04:45]}  g6 {[%clk 0:03:13]} 27. Qf3 {[%clk 0:04:21]}  Rb6 {[%clk 0:01:42]} 28. Rxb6 {[%clk 0:03:43]}  Qxb6 {[%clk 0:01:44]} 29. g3 {[%clk 0:03:41]}  Kg7 {[%clk 0:01:31]} 30. c4 {[%clk 0:03:16]}  Bd4 {[%clk 0:01:30]} 31. Bd3 {[%clk 0:03:04]}  Qf6 {[%clk 0:01:23]} 32. Qxf6+ {[%clk 0:02:41]}  Kxf6 {[%clk 0:01:24]} 33. Kg2 {[%clk 0:02:25]}  Rb8 {[%clk 0:01:22]} 34. Re2 {[%clk 0:02:26]}  Rb3 {[%clk 0:01:19]} 35. Bc2 {[%clk 0:02:27]}  Rb6 {[%clk 0:00:52]} 36. f4 {[%clk 0:02:27]}  h5 {[%clk 0:00:52]} 37. Kf3 {[%clk 0:02:22]}  Ra6 {[%clk 0:00:51]} 38. h3 {[%clk 0:02:18]}  Ra3+ {[%clk 0:00:52]} 39. Kg2 {[%clk 0:02:20]}  Ra6 {[%clk 0:00:51]} 40. Bb3 {[%clk 0:02:03]}  Rb6 {[%clk 0:00:50]} 41. Ba4 {[%clk 0:02:03]}  Rb2 {[%clk 0:00:48]} 42. Bc2 {[%clk 0:02:02]}  Rb6 {[%clk 0:00:49]} 43. Kf3 {[%clk 0:01:30]}  Ra6 {[%clk 0:00:50]} 44. Re8 {[%clk 0:01:31]}  Kg7 {[%clk 0:00:31]} 45. g4 {[%clk 0:01:26]}  hxg4+ {[%clk 0:00:27]} 46. hxg4 {[%clk 0:01:28]}  Ra3+ {[%clk 0:00:17]} 47. Ke2 {[%clk 0:01:28]}  Ra6 {[%clk 0:00:18]} 48. g5 {[%clk 0:01:26]}  Bb2 {[%clk 0:00:19]} 49. Rd8 {[%clk 0:00:56]}  Bc1 {[%clk 0:00:17]} 50. Kf3 {[%clk 0:00:57]}  Ra3+ {[%clk 0:00:18]} 51. Kg4 {[%clk 0:00:57]}  Rc3 {[%clk 0:00:19]} 52. Be4 {[%clk 0:00:43]}  Rxc4 {[%clk 0:00:19]} 53. Re8 {[%clk 0:00:35]}  Rd4 {[%clk 0:00:17]} 54. Kf3 {[%clk 0:00:36]}  c4 {[%clk 0:00:15]} 55. Rc8 {[%clk 0:00:36]}  Bd2 {[%clk 0:00:11]} 56. Rc7 {[%clk 0:00:19]}  Kf8 {[%clk 0:00:11]} 57. Rc6 {[%clk 0:00:07]}  Ke7 {[%clk 0:00:11]} 58. Rc7+ {[%clk 0:00:08]}  Kf8 {[%clk 0:00:13]} 59. Rc8+ {[%clk 0:00:08]}  Ke7 {[%clk 0:00:14]} 60. Rc6 {[%clk 0:00:10]}  Kf8 {[%clk 0:00:15]} 61. d6 {[%clk 0:00:05]}  Bb4 {[%clk 0:00:16]} 62. Rc8+ {[%clk 0:00:06]}  Kg7 {[%clk 0:00:16]} 63. d7 {[%clk 0:00:06]}  Rxd7 {[%clk 0:00:17]} 64. Rxc4 {[%clk 0:00:07]}  Be7 {[%clk 0:00:18]} 65. Rc6 {[%clk 0:00:08]} 1/2-1/2


[Site "Internet"]